bitfinex/quotes_ETHUSD_20220202
["timestamp","ask_amount","ask_price","bid_price","bid_amount"]
[1643764125976,1.22411636,2777.6,2777.3,0.26431828]
[1643764126176,0.96968607,2778.3,2777.4,2.22995378]
[1643764126375,1.22429526,2778.2,2777.5,0.26431828]
[1643764130044,1.22429526,2778.2,2777.6,1.7998227]
[1643764130242,0.6515861,2778.7,2777.8,0.8998764]
[1643764130243,1.22429526,2778.1,2777.8,0.8998764]
[1643764130443,0.1799,2778.7,2777.9,0.26431828]
[1643764130671,1.87573684,2778.6,2777.9,0.3]
[1643764130976,1.22415074,2778.5,2777.9,0.3]
[1643764131173,2.14111078,2778.4,2777.9,0.3]
[1643764131374,2.14111078,2778.4,2777.7,0.3]
[1643764131375,0.3202855,2778.1,2777.7,0.3]
[1643764131573,0.3202855,2778.1,2777.1,1.9799679]
[1643764131574,1.22415074,2778.0,2777.1,1.9799679]
[1643764131771,1.22415074,2778.0,2777.2,0.57161239]
[1643764131970,1.22415074,2778.0,2777.3,0.27161239]
[1643764132377,1.22415074,2778.0,2777.4,0.27161239]
[1643764132576,1.22415074,2778.0,2777.5,0.27161239]
[1643764132774,1.22415074,2777.9,2777.6,0.27161239]
[1643764132977,1.22415074,2777.8,2777.6,0.9000265]
[1643764133175,0.1799,2778.3,2777.6,1.2000265]
[1643764133375,0.71595765,2777.9,2777.6,1.2000265]
[1643764133581,0.71595765,2777.9,2777.7,0.27146238]
[1643764133974,0.34024551,2778.4,2777.7,0.27146238]
[1643764134175,1.22359772,2778.3,2777.7,0.27146238]
[1643764134635,1.22359772,2778.2,2777.7,0.27146238]
[1643764134834,1.22359772,2778.1,2777.7,0.27146238]
[1643764135033,1.2232219,2778.0,2777.7,0.27146238]
[1643764135231,0.82377943,2778.3,2777.7,0.27146238]
[1643764135433,1.2232332,2778.2,2777.7,0.27146238]
[1643764136032,1.2232332,2778.2,2777.7,1.17138248]
[1643764136238,1.2232332,2778.2,2777.8,0.57146238]
[1643764136434,1.2232332,2778.2,2777.8,0.3]
[1643764137032,1.2232332,2778.1,2777.8,0.3]
[1643764137233,0.13819997,2778.6,2777.8,0.3]
[1643764137437,1.22273213,2778.5,2777.8,0.3]
[1643764138039,1.22273213,2778.5,2777.9,0.45511193]
[1643764138277,0.13819997,2779.2,2777.9,0.45511193]
[1643764138278,0.1799,2779.0,2778.0,0.27478193]
[1643764138475,0.13819997,2779.2,2778.0,0.27478193]
[1643764138476,1.21928382,2778.9,2778.0,0.27478193]
[1643764138678,1.21928382,2778.8,2778.2,0.8996903]
[1643764138881,1.21928382,2778.7,2778.3,0.3]
[1643764139076,0.1799,2779.1,2778.3,0.6]
[1643764139278,1.21946095,2779.0,2778.3,1.49966]
[1643764139683,1.21946095,2778.9,2778.4,0.27340079]
[1643764139883,0.1799,2779.4,2778.4,1.0]
[1643764140082,1.21885521,2779.3,2778.6,0.8996398]
[1643764140281,0.85110342,2779.1,2778.5,1.2255265]
[1643764140482,1.21885521,2779.0,2778.5,0.6970565]
[1643764140682,0.85110342,2779.1,2778.5,0.6970565]
[1643764140683,1.21885521,2778.9,2778.5,0.6970565]
[1643764140881,1.21885521,2778.8,2778.5,0.6970565]
[1643764141086,0.1799,2779.4,2778.7,1.07986]
[1643764141281,1.19194232,2779.3,2778.7,0.89953]
[1643764141490,1.19194232,2779.2,2778.7,1.19953]
[1643764141683,0.04035807,2779.7,2778.7,1.19953]
[1643764141929,0.94066483,2779.2,2778.7,1.49953]
[1643764142131,0.94066483,2779.2,2778.7,0.6]
[1643764142132,1.21848903,2779.1,2778.7,0.6]
[1643764142331,1.21848903,2779.1,2778.5,0.6970565]
[1643764142531,0.4196087,2778.9,2778.5,0.9970565]
[1643764142729,1.21848903,2778.8,2778.5,0.9970565]
[1643764142930,0.94066483,2779.2,2778.5,0.9970565]
[1643764143130,0.88029862,2778.6,2778.3,1.7994367]
[1643764143329,0.88029862,2778.6,2778.4,0.27405699]
[1643764143529,0.1799,2779.3,2778.3,2.0994367]
[1643764143729,1.21792082,2779.2,2778.3,2.3994367]
[1643764143928,1.21792082,2779.2,2778.5,0.8997164]
[1643764144136,1.21792082,2779.2,2778.5,1.1997164]
[1643764144332,2.13859391,2779.1,2778.3,1.7994367]
[1643764144536,1.21792082,2779.0,2778.3,1.7994367]
[1643764144738,0.43088799,2778.4,2777.9,3.9006]
[1643764144934,0.43088799,2778.4,2777.8,0.1799]
[1643764145134,0.43088799,2778.4,2777.7,2.6990991]
[1643764145335,1.21743741,2778.3,2777.7,2.6990991]
[1643764145533,1.21743741,2778.3,2777.8,0.3]
[1643764145772,1.19836391,2778.4,2777.8,0.3]
[1643764146173,1.19836391,2778.4,2777.9,0.8999028]
[1643764146371,1.19836391,2778.4,2778.0,0.3]
[1643764147874,1.19181709,2778.3,2778.0,0.3]
[1643764148477,1.19181709,2778.3,2777.9,0.8999028]
[1643764148676,1.19181709,2778.3,2777.5,0.19197287]
[1643764148677,3.29668439,2778.3,2777.5,0.1799]
[1643764148879,1.19181709,2778.2,2777.2,0.1799]
[1643764149075,1.19181709,2778.2,2777.3,0.30073508]
[1643764149076,3.51341853,2778.2,2777.3,0.30073508]
[1643764149279,1.19181709,2778.1,2777.4,0.30073508]
[1643764149535,1.19181709,2778.0,2777.3,0.9001304]
[1643764149736,2.60156456,2778.4,2777.3,0.9001304]
[1643764149737,1.0,2778.3,2777.4,0.30078507]
[1643764149936,1.0,2778.3,2777.3,0.9001304]
[1643764149937,0.44383188,2777.6,2777.0,3.5991246]
[1643764150141,3.71767852,2778.2,2777.1,0.30090443]
[1643764150142,2.95872958,2778.2,2777.1,0.30090443]
[1643764150340,2.95872958,2778.2,2776.9,0.1799]
[1643764150341,2.19181488,2778.1,2776.9,0.1799]
[1643764150539,1.37171488,2778.0,2777.0,0.30089745]
[1643764150739,1.19181488,2777.9,2777.0,0.30089745]
[1643764150938,0.1799,2777.8,2777.1,0.30089745]
[1643764151137,0.1799,2777.8,2776.8,3.6009]
[1643764151138,1.19181488,2777.7,2776.8,3.6009]
[1643764151337,1.19181488,2777.7,2776.9,0.30101354]
[1643764151538,1.19181488,2777.7,2776.6,1.1624845]
[1643764151539,1.37171488,2777.7,2777.0,0.30101354]
[1643764151737,1.19181488,2777.6,2777.1,0.30101354]
[1643764151943,1.19181488,2777.6,2777.1,0.60101354]
[1643764152137,0.78778337,2777.5,2777.2,0.30101354]
[1643764152537,0.41359551,2777.3,2777.2,0.30101354]
[1643764152937,0.41359551,2777.3,2776.7,0.30101354]
[1643764153409,0.41359551,2777.3,2776.8,0.30101354]
[1643764153605,0.6989,2777.4,2776.9,0.30101354]
[1643764153805,0.6989,2777.4,2777.0,0.30101354]
[1643764154006,0.6989,2777.4,2777.1,0.30101354]
[1643764154206,0.6989,2777.4,2776.6,0.3]
[1643764154408,0.6989,2777.4,2776.7,0.3007868]
[1643764154621,0.1799,2777.4,2776.8,0.9002559]
[1643764154926,0.1799,2777.8,2776.9,0.3007868]
[1643764155113,1.7201,2778.4,2777.0,0.18033]
[1643764155114,0.1799,2778.2,2777.0,0.18033]
[1643764155314,1.2011,2778.4,2777.1,0.3007868]
[1643764155315,1.19437588,2778.1,2777.1,0.3007868]
[1643764155512,1.1799,2778.3,2777.1,0.3007868]
[1643764155513,1.37427588,2778.0,2777.1,0.6007868]
[1643764155714,2.09526037,2778.3,2777.1,0.6007868]
[1643764155715,0.85718373,2777.8,2777.2,0.3007868]
[1643764156114,0.85718373,2777.8,2777.3,0.9000938]
[1643764156312,0.85718373,2777.8,2777.4,0.3007868]
[1643764156513,1.1799,2778.2,2777.4,0.3007868]
[1643764156715,1.19487729,2778.1,2777.4,0.3007868]
[1643764156926,0.1799,2778.0,2777.4,0.3007868]
[1643764157130,1.19487729,2777.9,2777.4,0.3007868]
[1643764157527,0.6705999,2778.0,2777.4,0.3007868]
[1643764158127,1.19532806,2777.9,2777.4,0.3007868]
[1643764158927,0.44747199,2777.8,2777.3,0.9000938]
[1643764159129,0.89988535,2777.5,2777.4,0.30054111]
[1643764159330,0.89988535,2777.5,2777.1,0.30054111]
[1643764159735,0.89988535,2777.5,2777.1,0.60054111]
[1643764159931,0.89988535,2777.5,2777.2,0.30054111]
[1643764161286,0.89842603,2777.5,2777.2,0.30054111]
[1643764163089,2.57094061,2778.1,2777.2,0.30054111]
[1643764163288,1.19595093,2778.0,2777.2,0.30054111]
[1643764163591,0.1799,2777.9,2777.2,0.30054111]
[1643764163793,1.19595093,2777.8,2777.2,0.30054111]
[1643764163989,0.77225906,2777.7,2777.2,0.30054111]
[1643764164189,0.77225906,2777.7,2777.3,0.9001651]
[1643764164421,0.77225906,2777.7,2777.4,0.30054111]
[1643764164833,1.19712173,2777.6,2777.4,0.30054111]
[1643764165925,1.1799,2778.1,2777.4,0.30054111]
[1643764166126,1.19783109,2778.0,2777.4,0.30054111]
[1643764166327,0.1799,2777.9,2777.4,0.30054111]
[1643764166529,1.19783109,2777.8,2777.4,0.30054111]
[1643764167346,0.1799,2778.3,2777.4,0.30054111]
[1643764167635,1.19813813,2778.2,2777.4,0.30054111]
[1643764167837,0.1799,2778.1,2777.4,0.30054111]
[1643764168034,1.19813813,2778.0,2777.4,0.30054111]
[1643764168480,1.19813813,2777.9,2777.4,0.30054111]
[1643764168787,1.19813813,2777.8,2777.4,0.30054111]
[1643764168981,1.8314861,2778.4,2777.4,0.30054111]
[1643764169183,1.19495018,2778.3,2777.4,0.30054111]
[1643764169382,0.1799,2778.2,2777.4,0.30054111]
[1643764169587,1.19495018,2778.1,2777.4,0.30054111]
[1643764169991,2.01412812,2778.0,2777.4,0.30054111]
[1643764170292,1.19495018,2777.9,2777.4,0.30054111]
[1643764170486,0.3903365,2777.8,2777.4,0.30054111]
[1643764170687,1.19495018,2777.7,2777.0,1.8002941]
[1643764170887,1.19495018,2777.6,2777.1,0.31012042]
[1643764171086,2.36959039,2777.9,2777.0,1.8002941]
[1643764171289,0.90648505,2777.4,2777.1,0.31012265]
[1643764171934,1.44433035,2777.9,2777.1,0.31012265]
[1643764172132,1.19600195,2777.8,2777.1,0.61012265]
[1643764172332,1.19600195,2777.8,2777.2,0.31012265]
[1643764172536,1.19600195,2777.8,2777.0,1.8002941]
[1643764172537,1.19600195,2777.8,2777.3,0.31012265]
[1643764172732,1.19600195,2777.8,2777.4,0.31012265]
[1643764172936,1.19600195,2777.8,2777.5,0.30329572]
[1643764173136,1.19600195,2777.7,2777.2,0.9002177]
[1643764173338,1.19600195,2777.6,2777.3,0.30330089]
[1643764173537,1.19600195,2777.5,2777.3,0.30330089]
[1643764173738,1.19600195,2777.4,2777.3,0.30330089]
[1643764175145,1.19600195,2777.4,2777.2,0.9002177]
[1643764175338,1.19600195,2777.3,2777.2,1.2002177]
[1643764175539,1.19600195,2777.3,2777.2,0.30895927]
[1643764175809,1.19600195,2777.3,2776.4,0.98051021]
[1643764175810,4.09520438,2777.3,2776.4,0.98051021]
[1643764176008,1.37590195,2777.2,2776.5,0.29452702]
[1643764176204,2.01500195,2777.1,2776.6,0.29452702]
[1643764176503,1.37590195,2777.0,2776.7,0.29452702]
[1643764176708,1.19600195,2776.9,2776.0,7.47]
[1643764177006,1.0,2777.6,2776.0,7.47]
[1643764177007,0.1799,2777.4,2776.2,1.56315105]
[1643764177204,1.18904099,2777.3,2776.4,0.66259525]
[1643764177404,1.18904099,2777.3,2776.4,1.2714189]
[1643764177604,0.1799,2777.6,2776.4,1.2714189]
[1643764177605,1.18904099,2777.2,2776.5,0.30882365]
[1643764177808,0.1799,2777.6,2776.5,0.30882365]
[1643764178003,1.18892403,2777.5,2776.5,0.30882365]
[1643764178204,0.1799,2777.4,2776.5,0.30882365]
[1643764178403,1.18892403,2777.3,2776.6,0.30882365]
[1643764178604,1.18892403,2777.3,2776.6,1.2002841]
[1643764178804,3.73751848,2777.7,2776.7,0.30882365]
[1643764178805,1.36882403,2777.2,2776.7,0.30882365]
[1643764179008,1.18892403,2777.1,2776.7,0.30882365]
[1643764179318,1.2062,2777.8,2776.7,0.60882365]
[1643764179319,0.1799,2777.6,2776.7,0.60882365]
[1643764179533,1.20035236,2777.5,2776.8,0.30882365]
[1643764179735,0.1799,2777.8,2776.9,0.30882365]
[1643764179932,1.20045136,2777.7,2777.0,0.30882365]
[1643764180135,1.20045136,2777.6,2777.1,2.10895755]
[1643764180341,0.1799,2777.9,2777.2,0.30882365]
[1643764180534,1.20087972,2777.8,2777.3,0.30882365]
[1643764180734,1.20087972,2777.8,2777.1,3.3001339]
[1643764180735,0.1799,2778.3,2777.4,0.60882365]
[1643764180935,1.23042048,2778.2,2777.5,0.30882365]
[1643764181133,1.23042048,2778.2,2777.6,0.30882365]
[1643764181342,1.23042048,2778.2,2777.7,0.30882365]
[1643764181540,0.1799,2778.5,2777.8,0.30882365]
[1643764181733,0.1799,2778.5,2777.7,1.49984]
[1643764181734,1.23049604,2778.4,2777.9,0.30882365]
[1643764181933,0.1799,2778.8,2778.0,0.30882365]
[1643764182132,1.19812219,2778.7,2778.1,0.30882365]
[1643764182331,1.19812219,2778.7,2778.3,0.8998355]
[1643764182332,0.1799,2778.6,2778.3,0.8998355]
[1643764182535,1.19812219,2778.5,2778.3,0.8998355]
[1643764182731,1.19812219,2778.5,2778.3,1.1998355]
[1643764183179,1.19812219,2778.4,2778.3,1.1998355]
[1643764183677,1.19812219,2778.7,2778.3,1.49905864]
[1643764183878,1.19812219,2778.7,2778.3,1.1998355]
[1643764184083,0.8655417,2779.4,2778.4,0.2992076]
[1643764184084,0.1799,2779.3,2778.4,0.2992076]
[1643764184279,1.19860451,2779.2,2778.4,0.2992076]
[1643764184483,0.1799,2779.1,2778.6,0.8996435]
[1643764184682,1.19860451,2779.0,2778.6,0.8996435]
[1643764184883,0.8655417,2779.7,2778.7,0.77938408]
[1643764184884,0.1799,2779.3,2778.7,0.77938408]
[1643764185087,1.19872472,2779.2,2778.8,0.29905408]
[1643764185284,0.6515861,2779.8,2778.8,0.29905408]
[1643764185285,1.19872472,2779.1,2778.8,0.29905408]
[1643764185590,0.6515861,2779.9,2778.9,0.89952]
[1643764185784,0.40933615,2779.6,2778.9,1.0]
[1643764185985,0.9218062,2779.4,2779.0,2.6984132]
[1643764186184,0.442449,2779.1,2779.0,2.6984132]
[1643764186485,0.442449,2779.1,2779.0,0.3]
[1643764186684,1.64019897,2779.1,2778.4,2.6985131]
[1643764186932,1.19774997,2779.0,2778.4,2.6985131]
[1643764187137,1.19774997,2779.0,2778.5,0.25707959]
[1643764187336,1.19774997,2779.0,2778.4,2.6985131]
[1643764187536,1.19774997,2779.0,2778.5,0.25705037]
[1643764187738,1.19774997,2779.0,2778.4,2.6985131]
[1643764188144,1.19774997,2779.0,2778.7,0.8997537]
[1643764188339,1.19774997,2779.0,2778.7,1.1997537]
[1643764188940,1.23828453,2778.9,2778.7,0.3]
[1643764189338,0.442449,2779.1,2778.5,0.3]
[1643764189339,1.23828453,2778.8,2778.5,0.3]
[1643764189538,0.442449,2779.1,2778.5,0.3]
[1643764189539,1.23828453,2778.7,2778.5,0.3]
[1643764189739,1.23828453,2778.6,2778.5,0.3]
[1643764189944,1.23828453,2778.6,2778.3,0.8998389]
[1643764190140,0.91915562,2778.9,2778.0,0.01241045]
[1643764190339,0.38369697,2778.6,2778.1,0.25704283]
[1643764190545,1.2387505,2778.5,2778.1,0.25704283]
[1643764190783,0.1799,2778.8,2777.9,1.7996733]
[1643764190978,1.23867378,2778.7,2778.0,0.25704461]
[1643764191180,1.23867378,2778.7,2778.0,0.55704461]
[1643764191380,1.23867378,2778.7,2778.1,0.25704461]
[1643764192181,1.23867378,2778.7,2778.1,1.15687951]
[1643764192380,1.23867378,2778.7,2778.2,0.3]
[1643764192582,1.23867378,2778.7,2778.0,0.3]
[1643764192781,1.23867378,2778.7,2778.1,0.25703903]
[1643764193181,1.23867378,2778.7,2778.0,0.3]
[1643764193488,1.23867378,2778.7,2778.1,0.25705457]
[1643764195435,1.23867378,2778.7,2778.1,0.25566847]
[1643764196442,1.23867378,2778.7,2778.2,0.899859]
[1643764196638,1.23867378,2778.7,2778.3,0.3]
[1643764200179,0.91915562,2778.9,2778.3,0.3]
[1643764200381,1.3221416,2778.9,2778.3,0.3]
[1643764200581,2.23529808,2778.8,2778.2,0.70182241]
[1643764200780,0.1799,2778.8,2777.9,1.7996733]
[1643764201483,2.30234533,2778.8,2777.9,1.7996733]
[1643764201684,2.30234533,2778.8,2777.7,0.1799]
[1643764201685,4.38753516,2778.8,2777.7,0.1799]
[1643764201935,0.99999999,2778.5,2777.7,0.1799]
[1643764202130,21.09,2778.3,2777.7,0.1799]
[1643764202333,3.22310078,2778.2,2777.7,0.1799]
[1643764202628,3.22310078,2778.2,2777.7,0.1419]
[1643764202629,0.42119619,2778.1,2777.7,0.1419]
[1643764202829,2.82393205,2778.0,2777.7,0.1419]
[1643764203030,2.82393205,2778.0,2777.7,0.0001]
[1643764203232,1.0,2777.9,2777.7,0.0001]
[1643764203432,9.18366562,2777.8,2777.7,0.0001]
[1643764203631,9.18366562,2777.8,2776.5,4.24599525]
[1643764204231,0.84229782,2777.1,2776.5,4.24599525]
[1643764204435,0.84229782,2777.1,2776.5,5.3840079]
[1643764204635,1.73419782,2777.1,2776.5,5.3840079]
[1643764205034,1.73419782,2777.1,2776.5,1.8006079]
[1643764205233,1.73419782,2777.1,2776.6,0.3]
[1643764206279,0.8919,2777.1,2776.6,0.3]
[1643764206483,0.1799,2777.6,2776.6,0.3]
[1643764206678,0.1799,2777.6,2776.6,0.96259525]
[1643764206879,0.1799,2777.6,2776.8,0.9003204]
[1643764207079,0.1799,2777.7,2776.8,0.9003204]
[1643764207281,0.1799,2777.7,2776.8,1.2003204]
[1643764207481,1.13320646,2777.7,2776.8,1.2003204]
[1643764209185,0.1799,2777.7,2776.8,1.2003204]
[1643764209429,0.1799,2777.7,2777.0,2.7003977]
[1643764209634,0.13819997,2778.3,2777.1,0.18033]
[1643764209635,0.1799,2778.2,2777.1,0.18033]
[1643764209833,0.1799,2778.2,2777.1,2.14292525]
[1643764210230,0.1799,2778.2,2777.1,2.14684369]
[1643764210431,0.1799,2778.2,2777.1,2.14292525]
[1643764210630,0.1799,2778.2,2777.4,0.9000253]
[1643764210831,0.13819997,2778.3,2777.4,0.9000253]
[1643764211030,0.13819997,2778.3,2777.5,0.3]
[1643764211431,0.1799,2778.5,2777.5,0.01246139]
[1643764211638,2.33389935,2778.6,2777.5,0.01246139]
[1643764211832,0.1799,2778.6,2777.6,0.18033]
[1643764212032,2.71002886,2779.1,2777.6,0.18033]
[1643764212033,0.1799,2779.0,2777.6,0.18033]
[1643764213034,1.79982,2779.5,2777.9,1.0]
[1643764213035,0.1799,2779.2,2777.9,1.0]
[1643764213292,0.90703661,2779.9,2777.9,1.0]
[1643764213293,0.1799,2779.4,2778.2,0.01290915]
[1643764213490,0.00271529,2779.8,2778.2,0.01290915]
[1643764213491,0.18261529,2779.8,2778.3,0.6989]
[1643764213688,0.22354178,2779.8,2778.3,0.6989]
[1643764213888,0.88309683,2779.7,2778.3,4.4282]
[1643764214088,1.06299683,2779.7,2778.3,4.4282]
[1643764214295,1.06299683,2779.7,2778.4,1.18033]
[1643764214492,1.06299683,2779.7,2778.5,3.2175293]
[1643764214693,1.06299683,2779.7,2778.6,0.48033]
[1643764214893,1.06299683,2779.7,2778.6,1.50018652]
[1643764215294,1.06299683,2779.7,2778.7,2.23319129]
[1643764215495,1.2541624,2779.6,2778.8,0.25426219]
[1643764215695,1.2541624,2779.6,2778.8,0.01415318]
[1643764215896,1.2541624,2779.6,2778.9,0.8995468]
[1643764216697,1.2541624,2779.6,2778.8,1.81324678]
[1643764216929,1.2541624,2779.6,2778.8,2.41324678]
[1643764217533,1.2541624,2779.6,2778.8,2.11324678]
[1643764217731,1.2541624,2779.6,2778.5,0.1799]
[1643764217732,0.1799,2779.5,2778.5,0.1799]
[1643764217933,0.33694722,2779.2,2778.5,0.1799]
[1643764218130,1.4340624,2779.1,2778.5,0.1799]
[1643764218330,1.2541624,2779.0,2778.5,0.1799]
[1643764218531,0.76827308,2778.8,2778.0,6.0115]
[1643764218731,0.76827308,2778.8,2778.1,0.24382458]
[1643764218931,0.76827308,2778.8,2778.2,0.24382458]
[1643764219131,0.76827308,2778.8,2777.9,0.8998903]
[1643764219339,0.1799,2779.4,2778.0,0.24381937]
[1643764219542,0.1799,2779.4,2778.0,2.85171365]
[1643764219543,1.25012567,2779.3,2778.0,2.85171365]
[1643764219735,1.25012567,2779.3,2778.1,0.24381937]
[1643764219936,1.43002567,2779.2,2778.1,0.54381937]
[1643764220136,1.25012567,2779.1,2778.2,0.24381937]
[1643764220336,0.1799,2779.0,2778.2,0.24381937]
[1643764220778,0.1799,2779.1,2778.2,0.24381937]
[1643764220979,1.25067396,2779.0,2778.2,0.24381937]
[1643764221178,1.25067396,2779.0,2778.2,1.14360447]
[1643764221382,1.25067396,2779.0,2778.3,0.54381937]
[1643764221684,1.25067396,2779.0,2778.4,0.24381937]
[1643764222089,1.25067396,2779.0,2778.2,0.8997851]
[1643764222283,1.43057396,2778.9,2778.3,0.54049744]
[1643764222482,1.0,2779.3,2778.2,0.8997851]
[1643764222483,0.1799,2779.2,2778.4,0.24049744]
[1643764222685,1.25542273,2779.1,2777.8,5.4219978]
[1643764222886,0.1799,2779.0,2777.9,0.24027058]
[1643764223084,1.25542273,2778.9,2777.9,0.54027058]
[1643764223284,0.6932533,2778.7,2778.0,0.24027058]
[1643764223885,0.1799,2778.8,2778.0,0.24027058]
[1643764224087,1.25583778,2778.7,2778.0,0.24027058]
[1643764224283,0.1799,2779.2,2778.0,0.24027058]
[1643764224528,0.1799,2779.2,2778.1,0.8998436]
[1643764224735,0.1799,2779.2,2778.2,0.3]
[1643764225029,0.89824235,2778.8,2778.2,0.3]
[1643764225238,0.89824235,2778.8,2777.9,0.3]
[1643764225429,0.89824235,2778.8,2777.9,0.6]
[1643764225629,0.89824235,2778.8,2778.1,0.8998398]
[1643764225827,1.246,2779.4,2778.1,0.8998398]
[1643764225828,0.1799,2779.2,2778.2,0.3]
[1643764226828,0.92323463,2779.0,2778.2,0.3]
[1643764227028,0.1799,2778.9,2778.2,0.3]
[1643764228677,0.1799,2778.9,2778.2,2.422481]
[1643764228876,0.1799,2779.3,2778.2,0.3]
[1643764230288,0.90757519,2779.1,2778.2,0.3]
[1643764230488,0.1799,2779.0,2778.2,0.3]
[1643764230885,0.1799,2779.0,2778.3,0.8997524]
[1643764231086,0.1799,2779.0,2778.4,0.3]
[1643764233930,0.1799,2779.0,2778.1,0.91243045]
[1643764234129,0.90757519,2779.1,2778.1,0.91243045]
[1643764234130,0.90757519,2779.1,2778.2,0.3]
[1643764236484,0.90757519,2779.1,2777.8,0.1799]
[1643764236485,0.34526115,2778.8,2777.8,0.1799]
[1643764236684,0.1799,2778.7,2777.3,1.0799911]
[1643764236883,0.6989,2778.7,2777.3,6.9284911]
[1643764237082,0.6989,2778.7,2777.3,6.6284911]
[1643764237890,0.9023151,2778.3,2777.3,6.6284911]
[1643764238085,0.1799,2778.7,2777.3,9.47690504]
[1643764238484,0.1799,2778.8,2777.3,9.47690504]
[1643764238689,0.1799,2778.8,2777.3,6.6284911]
[1643764239088,0.84863048,2778.5,2777.4,0.3]
[1643764239291,0.1799,2778.4,2777.4,0.3]
[1643764239749,0.1799,2778.4,2777.4,1.3]
[1643764239951,0.1799,2778.4,2777.4,0.3]
[1643764241149,0.1299,2778.4,2777.6,0.9000076]
[1643764241352,0.1299,2778.4,2777.6,1.2000076]
[1643764241552,0.1299,2778.4,2777.6,1.5000076]
[1643764241755,2.1627,2778.9,2777.6,0.6]
[1643764241756,0.1799,2778.8,2777.6,0.6]
[1643764241954,0.1799,2778.8,2777.6,0.3]
[1643764242155,0.1799,2778.8,2777.6,0.96259525]
[1643764242357,0.1799,2778.8,2777.6,0.3]
[1643764242554,0.1799,2778.8,2777.6,2.4229797]
[1643764243199,0.1799,2778.8,2777.7,1.7997672]
[1643764243695,0.1799,2778.8,2777.8,0.3]
[1643764244096,0.1799,2778.8,2778.1,0.8998836]
[1643764244295,1.26070244,2778.7,2778.2,0.23561044]
[1643764244497,0.1799,2778.6,2778.2,0.23561044]
[1643764244896,0.1799,2778.9,2778.2,0.23561044]
[1643764245098,1.26059188,2778.8,2778.2,0.23561044]
[1643764245396,0.1799,2778.7,2778.2,0.23561044]
[1643764245603,0.1799,2778.7,2778.2,0.53561044]
[1643764245604,1.26059188,2778.6,2778.2,0.53561044]
[1643764245906,7.19302958,2779.6,2778.3,0.23561044]
[1643764245907,0.1799,2779.2,2778.3,0.23561044]
[1643764246096,2.69340958,2779.6,2778.3,0.23561044]
[1643764246097,1.26081539,2779.1,2778.3,0.23561044]
[1643764246296,1.26081539,2779.0,2778.3,0.23561044]
[1643764246497,0.1799,2779.5,2778.3,0.23561044]
[1643764246699,0.92277007,2779.1,2778.3,0.23561044]
[1643764246929,1.26093755,2779.0,2778.3,0.23561044]
[1643764247535,1.26093755,2779.0,2778.3,1.13540284]
[1643764247736,1.26093755,2779.0,2778.4,0.53561044]
[1643764247936,1.26093755,2779.0,2778.5,0.23561044]
[1643764249238,1.44083755,2779.0,2778.5,0.23561044]
[1643764249536,1.26093755,2778.9,2778.5,0.23561044]
[1643764249938,0.92277007,2779.1,2778.5,0.23561044]
[1643764250137,1.26195373,2779.0,2778.5,0.23561044]
[1643764256537,1.26195373,2778.9,2778.5,0.23561044]
[1643764256736,1.26195373,2778.8,2778.5,0.23561044]
[1643764257036,0.8314861,2779.4,2778.5,0.23561044]
[1643764257236,1.26528605,2779.3,2778.5,0.23561044]
[1643764257437,0.1799,2779.2,2778.5,0.23561044]
[1643764257636,1.26528605,2779.1,2778.5,0.23561044]
[1643764257837,0.88577063,2779.0,2778.5,0.23561044]
[1643764258178,1.26528605,2778.9,2778.5,0.23561044]
[1643764262538,1.26528605,2778.9,2778.6,0.23561044]
[1643764263044,1.26528605,2778.9,2778.0,5.5245205]
[1643764263045,0.4346224,2778.8,2777.9,0.92441105]
[1643764263241,0.4346224,2778.8,2778.0,0.20421754]
[1643764263242,4.05039455,2778.8,2778.0,0.20421754]
[1643764263443,1.26528605,2778.7,2778.1,0.20421754]
[1643764263643,0.6989,2778.6,2778.2,0.20421754]
[1643764263942,1.26528605,2778.5,2778.3,0.20421754]
[1643764264148,1.78428605,2778.5,2777.7,0.66259525]
[1643764264343,0.1799,2778.6,2777.7,0.66108812]
[1643764264344,1.26528605,2778.4,2777.7,0.66108812]
[1643764264546,0.1799,2778.7,2777.8,0.19488077]
[1643764264749,1.3357948,2778.6,2777.9,0.19488077]
[1643764264945,0.1799,2779.0,2777.7,0.89547459]
[1643764264946,1.3357948,2778.5,2778.0,0.19488077]
[1643764265144,0.1799,2779.1,2778.1,0.19488077]
[1643764265145,0.92816809,2779.1,2778.1,0.19488077]
[1643764265344,0.92816809,2779.1,2777.8,0.78033]
[1643764265345,1.33678535,2779.0,2778.2,0.19488077]
[1643764265545,1.33678535,2779.0,2777.8,4.55751668]
[1643764265546,0.1799,2778.9,2778.3,0.19488077]
[1643764265778,0.1799,2778.9,2777.8,4.55751668]
[1643764265779,1.33678535,2778.8,2778.4,0.19488077]
[1643764265979,1.33678535,2778.8,2778.5,0.19488077]
[1643764266178,1.33678535,2778.7,2778.6,0.19488077]
[1643764266580,1.33678535,2778.9,2778.6,0.19488077]
[1643764266784,1.33678535,2778.9,2778.7,0.19488077]
[1643764266785,0.1799,2778.8,2778.7,0.19488077]
[1643764266979,1.51668535,2778.8,2778.7,0.19488077]
[1643764267182,1.33678535,2778.8,2778.7,0.19488077]
[1643764267383,4.98678535,2778.8,2778.7,0.19488077]
[1643764267785,1.33678535,2778.8,2778.7,0.19488077]
[1643764269848,1.63678535,2778.8,2778.7,0.19488077]
[1643764270045,1.63678535,2778.8,2777.6,2.98329353]
[1643764270246,1.30637216,2778.7,2777.7,0.19491753]
[1643764270447,1.30637216,2778.6,2777.7,0.19491753]
[1643764270647,1.30637216,2778.5,2777.7,0.19491753]
[1643764270843,0.1799,2779.0,2777.7,0.19491753]
[1643764270844,1.30637216,2778.4,2777.7,0.19491753]
[1643764271043,0.93944386,2778.6,2777.7,0.88333623]
[1643764271246,1.30649918,2778.5,2777.7,1.07818125]
[1643764272052,1.30649918,2778.5,2777.7,1.97818605]
[1643764272246,1.30649918,2778.5,2777.8,0.49484502]
[1643764272450,1.30649918,2778.5,2777.9,0.19484502]
[1643764272648,1.30649918,2778.5,2778.0,0.19484502]
[1643764272847,1.30649918,2778.5,2778.1,0.19484502]
[1643764273045,0.1799,2779.0,2778.2,0.19484502]
[1643764273287,1.3372244,2778.9,2778.3,0.19484502]
[1643764273486,1.3372244,2778.9,2778.4,0.19484502]
[1643764273686,1.2301,2779.2,2778.5,0.19484502]
[1643764273687,1.5171244,2778.8,2778.5,0.19484502]
[1643764273886,1.5171244,2778.8,2778.6,0.19484502]
[1643764273887,1.3372244,2778.7,2778.6,0.19484502]
[1643764274087,4.0671244,2778.7,2778.6,0.19484502]
[1643764274289,1.5171244,2778.7,2778.6,0.19484502]
[1643764276591,1.3372244,2778.7,2778.6,0.19484502]